fUSD/lending_fUSD_20251026
["ID","MTS","AMOUNT","RATE_DAILY","PERIOD"]
[392449622,1761493840186,-500.0,0.00035973,5]
[392449623,1761493840196,-500.0,0.00035973,5]
[392449624,1761493840206,-224.62285908,0.0003599,2]
[392449625,1761493840216,-224.62285908,0.0003599,2]
[392449626,1761493840226,-365.73899679,0.00035999,15]
[392449627,1761493840236,-150.0,0.00035999,15]
[392449628,1761493840246,-500.0,0.00035999,15]
[392449629,1761493840255,-500.0,0.00035999,15]
[392449630,1761493840264,-433.93821089,0.00035999,15]
[392449631,1761493840275,-155.46486169,0.00035999,15]
[392449632,1761493840284,-95329.73138786,0.00036,31]
[392449633,1761493840295,-2659.81942779,0.00036,2]
[392449634,1761493840304,-197.0,0.00036,30]
[392449635,1761493840313,-576039.56813103,0.00036,2]
[392449636,1761493840338,-411.0,0.00035644,2]
[392449637,1761493840348,-831.45322492,0.00036,2]
[392449638,1761493840359,-4197.51150922,0.00036,2]
[392449639,1761493840371,-11460.24676547,0.00036,2]
[392449640,1761493840396,-16562.47104701,0.00036,2]
[392449641,1761493840407,-302.0999999,0.00036,2]
[392449642,1761493840426,-1319.84233781,0.00036,2]
[392449643,1761493840437,-7730.17924815,0.00036,2]
[392449645,1761493844856,-315.0,0.00035715,2]
[392449646,1761493844866,-3773.5914395,0.00036,2]
[392449647,1761493844893,-1906.3479154,0.00036,2]
[392449648,1761493844966,-902.8911616,0.00036,2]
[392449649,1761493844978,-990.12486183,0.00036,2]
[392449650,1761493844989,-575.86004185,0.00036,2]
[392449651,1761493845001,-1431.05313493,0.00036,2]
[392449652,1761493845012,-1519.6769436,0.00036,2]
[392449653,1761493845023,-742.98698812,0.00036,2]
[392449654,1761493845035,-739.93742175,0.00036,2]
[392449655,1761493845046,-529.93508788,0.00036,2]
[392449656,1761493845057,-457.75490879,0.00036,2]
[392449657,1761493845069,-60821.18868002,0.00036,2]
[392449658,1761493845099,-573.74759833,0.00036,2]
[392449737,1761493846024,-303.41576,0.00036,2]
[392449750,1761494224618,195.0,0.00031306,120]
[392449752,1761494286668,195.0,0.00030137,120]
[392449753,1761494286777,195.0,0.00029299,120]
[392449755,1761494346276,195.0,0.00030137,120]
[392449756,1761494346309,195.0,0.00029299,120]
[392449757,1761494346918,748.18641499,0.00030137,120]
[392449758,1761494404422,449.31834422,0.00030137,120]
[392449759,1761494406770,195.0,0.00030137,120]
[392449760,1761494406916,195.0,0.00029299,120]
[392449761,1761494433600,4990016.03409906,0.00031507,120]
[392449764,1761494535264,600.0,0.00012,2]
[392449765,1761494535342,500.0,0.00012,2]
[392449766,1761494535715,500.0,0.00012,2]
[392449767,1761494541026,500.0,0.00012,2]
[392449768,1761494541350,500.0,0.00012,2]
[392449769,1761494541621,500.0,0.00012,2]
[392449770,1761494541745,500.0,0.00012,2]
[392449771,1761494542096,500.0,0.00012,2]
[392449772,1761494542456,500.0,0.00012,2]
[392449773,1761494544048,500.0,0.00012,2]
[392449774,1761494544397,800.0,0.00012,2]
[392449775,1761494546787,348.91581908,0.00012,2]
[392449776,1761494547657,992.68451632,0.00012,2]
[392449777,1761494547878,261.43351561,0.00012,2]
[392449778,1761494547988,516.28200309,0.00012,2]
[392449779,1761494548476,500.0,0.00012,2]
[392449780,1761494597016,724.20424895,0.0003689,120]
[392449781,1761494618873,2343.21,0.0003689,60]
[392449782,1761494620788,539.11758872,0.0003689,120]
[392449786,1761494829108,-500.0,0.00027397,3]
[392449787,1761494829131,-164.32787802,0.00027397,3]
[392449788,1761494845086,-210.38212198,0.00027397,3]
[392449789,1761494845108,-195.0,0.00028348,120]
[392449790,1761494845129,-195.0,0.00029746,120]
[392449791,1761494845149,-195.0,0.00030137,120]
[392449792,1761494845170,-195.0,0.00030137,120]
[392449793,1761494845190,-195.0,0.00030137,120]
[392449794,1761494845210,-180.0,0.00030137,120]
[392449795,1761494845231,-163.15933945,0.00030137,120]
[392449796,1761494845255,-1374.0,0.000312,2]
[392449797,1761494845275,-150.0,0.000312,2]
[392449798,1761494845295,-1000.0,0.00031412,2]
[392449799,1761494845316,-1204.0,0.00031685,3]
[392449800,1761494845336,-397.0,0.00031685,3]
[392449801,1761494845357,-833.71014283,0.00031686,2]
[392449802,1761494845381,-213.0,0.00031799,3]
[392449803,1761494845404,-1279.0,0.000318,2]
[392449804,1761494845424,-189.77,0.00031814,2]
[392449805,1761494845444,-242.58,0.00032167,2]
[392449806,1761494845465,-166.0,0.00032787,120]
[392449807,1761494845486,-1294.05914714,0.00034094,4]
[392449808,1761494845509,-230.0,0.00034177,7]
[392449809,1761494845531,-230.0,0.00034242,2]
[392449810,1761494845553,-1778.0,0.00034382,2]
[392449811,1761494845575,-427.71,0.00034406,2]
[392449812,1761494845596,-166.0,0.00034427,120]
[392449813,1761494845618,-250.0,0.00034468,2]
[392449814,1761494845639,-591.0,0.00034547,3]
[392449815,1761494845660,-150.0,0.00034548,2]
[392449816,1761494845680,-171.0,0.00034555,2]
[392449817,1761494845700,-999.0,0.00034555,3]
[392449818,1761494845723,-168.0,0.00034632,2]
[392449819,1761494845745,-19999.99,0.00034649,2]
[392449820,1761494845768,-7735.95,0.00034649,2]
[392449821,1761494845792,-4715.71,0.00034649,2]
[392449822,1761494845813,-4209.81,0.00034752,2]
[392449823,1761494845834,-208.0,0.0003476,2]
[392449824,1761494845856,-300.0,0.0003476,7]
[392449825,1761494845877,-281.1,0.000348,14]
[392449826,1761494845900,-1374.79906189,0.000349,2]
[392449827,1761494845922,-300.0,0.000349,2]
[392449828,1761494845945,-238.95,0.0003492,2]
[392449829,1761494845968,-11461.68,0.00034937,2]
[392449830,1761494845988,-244.0,0.0003497,2]
[392449831,1761494846009,-332.52624786,0.00035053,2]
[392449832,1761494846030,-389.44460799,0.00035054,2]
[392449833,1761494846050,-150.0,0.00035086,2]
[392449834,1761494846071,-383.12,0.00035096,41]
[392449835,1761494846095,-847.0,0.00035232,7]
[392449836,1761494846116,-319.0,0.0003531,2]
[392449837,1761494846137,-714.77,0.00035345,2]
[392449838,1761494846158,-896.66,0.00035345,2]
[392449839,1761494846181,-168.0,0.00035381,2]
[392449840,1761494846203,-151.0,0.00035434,2]
[392449841,1761494846224,-150.0,0.00035454,7]
[392449842,1761494846250,-500.0,0.00035454,7]
[392449843,1761494846274,-500.0,0.00035454,7]
[392449844,1761494846298,-443.35872658,0.00035454,7]
[392449845,1761494846319,-242.58,0.00035591,2]
[392449846,1761494846344,-1654.80080724,0.000356,120]
[392449847,1761494846365,-300.0,0.00035616,120]
[392449848,1761494846385,-338.3,0.00035637,30]
[392449849,1761494846407,-168.0,0.00035676,2]
[392449850,1761494846432,-168.0,0.00035683,7]
[392449851,1761494846455,-168.0,0.00035699,2]
[392449852,1761494846477,-214.0,0.00035706,2]
[392449853,1761494846499,-168.0,0.00035747,7]
[392449854,1761494846521,-256.0,0.00035778,2]
[392449855,1761494846544,-500.0,0.00035873,5]
[392449856,1761494846567,-1478.60731435,0.00035889,2]
[392449857,1761494846590,-1478.60731427,0.0003589,2]
[392449858,1761494846610,-1478.60731427,0.00035891,2]
[392449859,1761494846632,-1478.60731427,0.00035893,2]
[392449860,1761494846654,-1478.60731427,0.00035894,2]
[392449861,1761494846679,-1478.60731427,0.00035895,2]
[392449862,1761494846701,-1478.60731427,0.00035896,2]
[392449863,1761494846723,-1478.60731427,0.00035898,2]
[392449864,1761494846750,-2151.18222181,0.00035898,2]
[392449865,1761494846890,-173.32752701,0.00035898,2]
[392449866,1761494846913,-1125.3339522,0.00035898,8]
[392449867,1761494846937,-2151.18222177,0.00035898,2]
[392449868,1761494846959,-2151.18222177,0.00035898,2]
[392449869,1761494846981,-2151.18222177,0.00035899,2]
[392449870,1761494847003,-1478.60731427,0.00035899,2]
[392449871,1761494847026,-2151.18222177,0.00035899,2]
[392449872,1761494847047,-2151.18222177,0.00035899,2]
[392449873,1761494847068,-2151.18222177,0.00035899,2]
[392449874,1761494847089,-2151.18222177,0.000359,2]
[392449875,1761494847110,-2151.18222177,0.000359,2]
[392449876,1761494847130,-500.0,0.000359,30]
[392449877,1761494847154,-500.0,0.000359,30]
[392449878,1761494847175,-500.0,0.000359,30]
[392449879,1761494847197,-500.0,0.000359,30]
[392449880,1761494847218,-500.0,0.000359,30]
[392449881,1761494847238,-500.0,0.000359,30]
[392449882,1761494847258,-500.0,0.000359,30]
[392449883,1761494847279,-500.0,0.000359,30]
[392449884,1761494847299,-500.0,0.000359,30]
[392449885,1761494847319,-500.0,0.000359,30]
[392449886,1761494847340,-500.0,0.000359,30]
[392449887,1761494847360,-500.0,0.000359,30]
[392449888,1761494847379,-500.0,0.000359,30]
[392449889,1761494847399,-500.0,0.000359,30]
[392449890,1761494847419,-362.25129636,0.000359,2]
[392449891,1761494847440,-1478.60731427,0.000359,2]
[392449892,1761494847463,-2151.18222177,0.000359,2]
[392449893,1761494847483,-2456.2336352,0.000359,2]
[392449894,1761494847506,-151.73434893,0.000359,10]
[392449895,1761494847525,-570.66619608,0.000359,2]
[392449896,1761494847544,-204.43251313,0.00035964,2]
[392449897,1761494847567,-847.0,0.00035971,2]
[392449898,1761494847587,-400.0,0.00035972,5]
[392449899,1761494847606,-414.8,0.00035972,5]
[392449900,1761494847626,-430.1476,0.00035972,5]
[392449901,1761494847647,-153.41161014,0.00035972,5]
[392449902,1761494847666,-500.0,0.00035973,5]
[392449903,1761494847686,-502.11430923,0.00035973,5]
[392449904,1761494847705,-500.0,0.00035973,2]
[392449905,1761494847727,-502.65438516,0.00035973,5]
[392449906,1761494847750,-500.0,0.00035973,5]
[392449907,1761494847770,-502.00398933,0.00035973,5]
[392449908,1761494847791,-500.0,0.00035973,5]
[392449909,1761494847811,-511.80013752,0.00035973,5]
[392449910,1761494847832,-29450.24591307,0.0003598,3]
[392449911,1761494848115,-150.0,0.00034594,3]
[392449912,1761494848138,-60.61600163,0.0003598,3]
[392449917,1761495032025,-476.35224409,0.00028,10]
[392449918,1761495032035,-150.0,0.00034403,2]
[392449919,1761495032045,-195.0,0.00034795,120]
[392449920,1761495032055,-195.0,0.00035188,120]
[392449921,1761495032064,-151.82,0.00035656,2]
[392449922,1761495032073,-195.0,0.00035663,120]
[392449923,1761495032083,-11217.06759,0.000358,2]
[392449924,1761495032092,-151.66158609,0.0003589,2]
[392449925,1761495032101,-380.44413072,0.000359,2]
[392449926,1761495032113,-1675.54312353,0.000359,2]
[392449927,1761495032122,-228.9804124,0.00035935,2]
[392449928,1761495032132,-12713.6971277,0.00035989,3]
[392449929,1761495032142,-500.0,0.00035989,7]
[392449930,1761495032151,-500.0,0.00035989,7]
[392449931,1761495032161,-218.98,0.00035989,7]
[392449932,1761495032171,-458.80327656,0.00035989,9]
[392449933,1761495032180,-272.57875577,0.00035989,9]
[392449934,1761495032190,-500.0,0.00035989,2]
[392449935,1761495032199,-232.32231663,0.00035989,9]
[392449936,1761495032208,-155.46486169,0.00035989,15]
[392449937,1761495032218,-183.0402999,0.00035989,15]
[392449938,1761495032227,-391.94266912,0.00035989,15]
[392449939,1761495032237,-193.981443,0.00035989,15]
[392449940,1761495032247,-4844.09389623,0.0003599,3]
[392449941,1761495032267,-2674.68379683,0.0003599,3]
[392449944,1761495032411,-102.53104965,0.0003599,3]
[392449946,1761495032422,-30519.78264059,0.0003599,3]
[392449948,1761495032431,-13233.49564703,0.0003599,3]
[392449951,1761495032442,-300.0,0.0003599,3]
[392450109,1761495037999,-365.73899679,0.00035989,15]
[392450110,1761495038011,-160.37319184,0.00035989,15]
[392450111,1761495038178,-9433.88781137,0.0003599,3]
[392450112,1761495038193,-441.60056182,0.0003599,3]
[392450118,1761495039284,-145054.94927171,0.0003599,3]
[392450119,1761495039297,-1092.07620888,0.0003599,3]
[392450120,1761495039477,-23.40177788,0.0003599,3]
[392450121,1761495039491,-7632.566163,0.0003599,3]
[392450122,1761495039504,-582.19786589,0.0003599,3]
[392450123,1761495039516,-1018.225,0.0003599,3]
[392450124,1761495039980,-878.34661994,0.00032,120]
[392450125,1761495039990,-75461.54224742,0.0003599,3]
[392450126,1761495040001,-337642.626772,0.0003599,3]
[392450127,1761495040012,-224.62285908,0.0003599,2]
[392450128,1761495040022,-224.62285908,0.0003599,2]
[392450129,1761495040032,-70508.43873207,0.0003599,2]
[392450130,1761495040042,-277.35679052,0.00035998,15]
[392450131,1761495040051,-287.61899177,0.00035998,15]
[392450132,1761495040062,-298.26089446,0.00035998,15]
[392450133,1761495040072,-309.29654756,0.00035998,15]
[392450134,1761495040081,-320.74051982,0.00035998,15]
[392450135,1761495040091,-332.60791905,0.00035998,15]
[392450136,1761495040101,-264.8424049,0.00035998,15]
[392450137,1761495040111,-2130.4866772,0.00035999,2]
[392450138,1761495040121,-13263.248877,0.00035999,2]
[392450139,1761495040131,-155.0,0.00035999,2]
[392450140,1761495040141,-16957.6398018,0.00035999,2]
[392450141,1761495040150,-1004.3755,0.00035999,2]
[392450142,1761495040160,-153.98124979,0.00035999,20]
[392450143,1761495040170,-200.0,0.00035999,30]
[392450144,1761495040180,-250.0,0.00035999,30]
[392450145,1761495040190,-220.0,0.00035999,30]
[392450146,1761495040200,-250.0,0.00035999,30]
[392450147,1761495040209,-220.0,0.00035999,30]
[392450148,1761495040219,-250.0,0.00035999,30]
[392450149,1761495040229,-220.0,0.00035999,30]
[392450150,1761495040238,-250.0,0.00035999,30]
[392450151,1761495040248,-220.0,0.00035999,30]
[392450152,1761495040258,-250.0,0.00035999,30]
[392450153,1761495040267,-250.0,0.00035999,30]
[392450154,1761495040277,-250.0,0.00035999,30]
[392450155,1761495040287,-220.0,0.00035999,30]
[392450156,1761495040298,-250.0,0.00035999,30]
[392450157,1761495040308,-250.0,0.00035999,30]
[392450158,1761495040319,-250.0,0.00035999,30]
[392450159,1761495040328,-250.0,0.00035999,30]
[392450160,1761495040338,-268.08190151,0.00035999,30]
[392450161,1761495040347,-250.0,0.00035999,30]
[392450162,1761495040356,-250.0,0.00035999,30]
[392450163,1761495040365,-250.0,0.00035999,30]
[392450164,1761495040375,-250.0,0.00035999,30]
[392450165,1761495040385,-250.0,0.00035999,30]
[392450166,1761495040395,-250.0,0.00035999,30]
[392450167,1761495040404,-250.0,0.00035999,30]
[392450168,1761495040413,-250.0,0.00035999,30]
[392450169,1761495040423,-297.17620436,0.00035999,30]
[392450170,1761495040433,-414.0,0.00035999,30]
[392450171,1761495040442,-250.0,0.00035999,30]
[392450172,1761495040452,-250.0,0.00035999,30]
[392450173,1761495040461,-250.0,0.00035999,30]
[392450174,1761495040470,-429.318,0.00035999,30]
[392450175,1761495040480,-250.0,0.00035999,30]
[392450176,1761495040490,-253.0,0.00035999,30]
[392450177,1761495040500,-445.202766,0.00035999,30]
[392450178,1761495040509,-250.0,0.00035999,30]
[392450180,1761495040519,-250.0,0.00035999,30]
[392450182,1761495040528,-461.67526834,0.00035999,30]
[392450184,1761495040538,-201.12765536,0.00035999,30]
[392450186,1761495040548,-250.0,0.00035999,30]
[392450188,1761495040558,-250.0,0.00035999,30]
[392450190,1761495040568,-151.0,0.00035999,30]
[392450192,1761495040578,-250.0,0.00035999,30]
[392450194,1761495040588,-478.75725327,0.00035999,30]
[392450196,1761495040597,-250.0,0.00035999,30]
[392450198,1761495040608,-250.0,0.00035999,30]
[392450201,1761495040618,-151.0,0.00035999,30]
[392450203,1761495040628,-151.0,0.00035999,30]
[392450205,1761495040637,-496.47127164,0.00035999,30]
[392450207,1761495040647,-250.0,0.00035999,30]
[392450209,1761495040657,-368.2839526,0.00035999,30]
[392450211,1761495040667,-151.0,0.00035999,30]
[392450213,1761495040677,-250.0,0.00035999,30]
[392450215,1761495040687,-250.0,0.00035999,30]
[392450217,1761495040696,-514.84070869,0.00035999,30]
[392450220,1761495040708,-151.0,0.00035999,30]
[392450222,1761495040717,-180.24415004,0.00035999,30]
[392450224,1761495040728,-151.0,0.00035999,30]
[392450226,1761495040737,-250.0,0.00035999,30]
[392450228,1761495040747,-533.88981491,0.00035999,30]
[392450230,1761495040756,-151.0,0.00035999,30]
[392450232,1761495040766,-151.0,0.00035999,30]
[392450234,1761495040776,-200.0,0.00035999,30]
[392450236,1761495040785,-250.0,0.00035999,30]
[392450238,1761495040795,-553.64373807,0.00035999,30]
[392450240,1761495040808,-151.0,0.00035999,30]
[392450242,1761495040818,-151.0,0.00035999,30]
[392450244,1761495040828,-353.25738842,0.00035999,30]
[392450246,1761495040838,-250.0,0.00035999,30]
[392450248,1761495040847,-574.12855637,0.00035999,30]
[392450250,1761495040858,-151.0,0.00035999,30]
[392450252,1761495040867,-250.0,0.00035999,30]
[392450254,1761495040876,-595.37131296,0.00035999,30]
[392450257,1761495040886,-151.0,0.00035999,30]
[392450258,1761495040895,-250.0,0.00035999,30]
[392450261,1761495040905,-151.0,0.00035999,30]
[392450263,1761495040915,-250.0,0.00035999,30]
[392450265,1761495040929,-617.40005154,0.00035999,30]
[392450267,1761495040939,-151.0,0.00035999,30]
[392450269,1761495040953,-250.0,0.00035999,30]
[392450271,1761495040963,-640.24385345,0.00035999,30]
[392450273,1761495040974,-151.0,0.00035999,30]
[392450274,1761495040985,-200.0,0.00035999,30]
[392450277,1761495040996,-663.93287602,0.00035999,30]
[392450279,1761495041007,-151.0,0.00035999,30]
[392450281,1761495041018,-688.49839244,0.00035999,30]
[392450283,1761495041027,-151.0,0.00035999,30]
[392450284,1761495041036,-713.97283296,0.00035999,30]
[392450285,1761495041046,-151.0,0.00035999,30]
[392450286,1761495041056,-151.0,0.00035999,30]
[392450287,1761495041066,-604.09475324,0.00035999,30]
[392450288,1761495041076,-151.0,0.00035999,30]
[392450289,1761495041086,-151.0,0.00035999,30]
[392450290,1761495041095,-151.0,0.00035999,30]
[392450291,1761495041106,-250.0,0.00035999,30]
[392450292,1761495041116,-151.0,0.00035999,30]
[392450293,1761495041126,-151.0,0.00035999,30]
[392450294,1761495041135,-151.0,0.00035999,30]
[392450295,1761495041145,-541.13,0.00035999,14]
[392450296,1761495041155,-500.0,0.00035999,2]
[392450297,1761495041165,-500.0,0.00035999,2]
[392450298,1761495041177,-500.0,0.00035999,2]
[392450299,1761495041186,-476.61195222,0.00035999,30]
[392450300,1761495041196,-992.0,0.00036,5]
[392450301,1761495041206,-95329.73138786,0.00036,31]
[392450302,1761495041218,-330.0,0.00036,30]
[392450303,1761495041227,-350.0,0.00036,2]
[392450304,1761495041237,-1030.57977684,0.00036,5]
[392450305,1761495041248,-60683.1743639,0.00036,2]
[392450306,1761495041270,-1449.24860587,0.00036,2]
[392450307,1761495041282,-12889.61826281,0.00036,2]
[392450308,1761495041294,-17123.10609903,0.00036,2]
[392450309,1761495041306,-8861.00672097,0.00036,2]
[392450310,1761495041325,-1990.08,0.00036,2]
[392450311,1761495041336,-529.89498721,0.00036,2]
[392450312,1761495041348,-7559.56027656,0.00036,2]
[392450313,1761495041742,-73.81420885,0.00036,2]
[392450314,1761495041754,-1135.5176934,0.00036,2]
[392450315,1761495041766,-5346.71833883,0.00036,2]
[392450316,1761495041777,-8992.14675157,0.00036,2]
[392450317,1761495041792,-26983.93509417,0.00036,2]
[392450318,1761495041803,-1292.12800258,0.00036,2]
[392450319,1761495041814,-9232.46486767,0.00036,2]
[392450322,1761495043084,-1240.0779603,0.00036,2]
[392450323,1761495043096,-1090.11786373,0.00036,2]
[392450324,1761495043107,-274.56347505,0.00036,2]
[392450325,1761495043175,-571.49809988,0.00036,2]
[392450326,1761495043186,-7795.60850713,0.00036,2]
[392450327,1761495043329,-424.394407,0.00033,120]
[392450328,1761495043342,-313.62008107,0.00033,120]
[392450329,1761495043364,-140.33213187,0.00033,120]
[392450330,1761495043373,-428.48611813,0.00036,2]
[392450331,1761495043384,-1840.88289894,0.00036,2]
[392450336,1761495046032,-594.25925752,0.000339,120]
[392450337,1761495046045,-284.08736242,0.000339,120]
[392450338,1761495046055,-255.14394236,0.00036,2]
[392450339,1761495046120,-1725.20316901,0.00036,2]
[392450340,1761495046210,-381.55028549,0.00036,2]
[392450348,1761495145726,-169.0,0.00035,120]
[392450352,1761495435140,600.0,0.00012,2]
[392450362,1761495730270,-159.66,0.00017273,2]
[392450363,1761495730294,-85.08307856,0.00018137,2]
[392450364,1761495734673,592.9522722,0.00012,2]
[392450367,1761495916127,181.59478123,0.00036872,120]
[392450369,1761495931543,343.01306388,0.0002,120]
[392450371,1761495964311,335.78904153,0.00036872,120]
[392450374,1761495973578,223.61393114,0.00036872,120]
[392450375,1761495990436,235.11140473,0.00036872,60]
[392450376,1761496035193,500.0,0.00012,2]
[392450389,1761496145134,-195.0,0.00018569,2]
[392450390,1761496145159,-159.66,0.00019193,2]
[392450391,1761496145179,-195.0,0.00019241,2]
[392450392,1761496145200,-195.0,0.00019951,2]
[392450393,1761496145221,-195.0,0.00019951,2]
[392450394,1761496145242,-195.0,0.00019951,2]
[392450395,1761496145264,-159.66,0.00021112,2]
[392450396,1761496145284,-1696.81025564,0.000215,2]
[392450397,1761496145304,-182.58026005,0.0002291,2]
[392450398,1761496145325,-702.94763641,0.0002301,120]
[392450399,1761496145347,-159.66,0.00023031,2]
[392450400,1761496145366,-300.0,0.00023416,2]
[392450401,1761496145385,-26043.72807335,0.00023417,2]
[392450402,1761496145410,-159.66,0.0002495,2]
[392450403,1761496145430,-420.0,0.00025408,2]
[392450404,1761496145449,-213.43636344,0.00026,2]
[392450405,1761496145470,-160.62707384,0.00026,2]
[392450406,1761496145494,-159.66,0.0002687,2]
[392450407,1761496145514,-217.48,0.00026986,120]
[392450408,1761496145533,-1019.30444587,0.00027,2]
[392450409,1761496145685,-530.0,0.00027,2]
[392450410,1761496145707,-159.66,0.00028789,2]
[392450411,1761496145733,-11888.42358967,0.00029753,2]
[392450412,1761496145754,-307.39010114,0.0003013,2]
[392450413,1761496145774,-1056.78565027,0.0003013,2]
[392450414,1761496145795,-114.78381156,0.0003013,2]
[392450415,1761496151114,-539.39498012,0.0003013,2]
[392450416,1761496151137,-159.66,0.00030708,2]
[392450417,1761496151159,-200.0,0.00031327,2]
[392450418,1761496151179,-1262.82501988,0.00031591,2]
[392450419,1761496156861,338.82,0.00013699,2]
[392450422,1761496169109,-338.82,0.00020187,2]
[392450423,1761496169131,-299.16,0.00026676,2]
[392450452,1761496232169,-39.66,0.00026676,2]
[392450454,1761496232180,-195.0,0.00029134,120]
[392450455,1761496232189,-195.0,0.00029344,120]
[392450456,1761496232199,-839.24941802,0.00029344,120]
[392450457,1761496232371,-1211.43223776,0.00029344,120]
[392450458,1761496232381,-195.0,0.00030889,120]
[392450459,1761496232391,-93.56776224,0.00031591,2]
[392450460,1761496232403,-1728.3468498,0.00031591,2]
[392450461,1761496232414,-400.0,0.00031999,3]
[392450462,1761496232425,-1200.0,0.00031999,3]
[392450463,1761496232434,-245.0,0.00031999,3]
[392450464,1761496232444,-317.53864798,0.00032,120]
[392450465,1761496232453,-31335.30575548,0.00032,2]
[392450466,1761496232463,-166.66,0.00032178,30]
[392450467,1761496232472,-879.23714322,0.000323,2]
[392450468,1761496232481,-159.66,0.00032627,2]
[392450469,1761496232495,-1692.2022011,0.000327,2]
[392450470,1761496232505,-6159.16852555,0.0003276,2]
[392450471,1761496232524,-2440.13081067,0.0003276,2]
[392450473,1761496232557,-1313.699999,0.0003276,2]
[392450476,1761496232579,-278.40813583,0.0003276,2]
[392450826,1761496238147,-77731.59078084,0.0003276,2]
[392450827,1761496238157,-4752.37528262,0.000328,2]
[392450828,1761496238166,-317.53864798,0.00033,120]
[392450829,1761496238176,-1568.71946198,0.00033,2]
[392450830,1761496238186,-1533.76376067,0.00033,2]
[392450831,1761496238196,-151.13677957,0.00033,2]
[392450832,1761496238206,-10545.31,0.00033038,2]
[392450833,1761496238216,-1255.47,0.00033038,2]
[392450834,1761496238225,-1692.20220104,0.00033056,2]
[392450835,1761496238235,-338.82,0.00033165,2]
[392450836,1761496238245,-335.0,0.00033352,2]
[392450837,1761496238258,-1692.20220104,0.00033411,2]
[392450838,1761496238268,-941.0,0.00033418,2]
[392450839,1761496238277,-425.0,0.00033485,2]
[392450840,1761496238286,-1192.46021183,0.000335,2]
[392450841,1761496238297,-11401.69,0.00033546,2]
[392450842,1761496238307,-1282.0,0.00033551,2]
[392450844,1761496238318,-1213.0,0.00033618,2]
[392450846,1761496238327,-7285.79055843,0.00033623,2]
[392450848,1761496238337,-1141.0,0.00033684,2]
[392450849,1761496238346,-1101.0,0.00033751,2]
[392450850,1761496238356,-1692.20220104,0.00033767,2]
[392450851,1761496238365,-326.15,0.00033812,120]
[392450852,1761496238375,-431.0,0.00033818,2]
[392450853,1761496238384,-166.66,0.00033871,30]
[392450854,1761496238394,-644.0,0.00033884,2]
[392450855,1761496238404,-317.53864798,0.000339,120]
[392450856,1761496238415,-1192.0,0.00033951,2]
[392450857,1761496238426,-713.24766238,0.00034,2]
[392450858,1761496238437,-263.71233762,0.00034,2]
[392450859,1761496238447,-1106.0,0.00034017,2]
[392450861,1761496238458,-258.0,0.00034084,2]
[392450863,1761496238470,-1320.75650345,0.00034122,2]
[392450864,1761496238492,-371.44569759,0.00034122,2]
[392450865,1761496238502,-186.55430241,0.00034123,2]
[392450871,1761496240180,-150.0,0.000335,3]
[392450873,1761496240194,-637.25569759,0.00034123,2]
[392450874,1761496240206,-646.202325,0.0003415,2]
[392450875,1761496240390,-798.797675,0.0003415,2]
[392450876,1761496240404,-343.0,0.00034217,2]
[392450877,1761496240419,-150.0,0.0003426,2]
[392450878,1761496240431,-150.0,0.0003426,120]
[392450879,1761496240443,-680.462325,0.00034284,2]
[392450882,1761496240922,-1.6e-07,0.00034,3]
[392450883,1761496240936,-149.99999984,0.00034,3]
[392450884,1761496240946,-1229.537675,0.00034284,2]